fUST/lending_fUST_20250912
["ID","MTS","AMOUNT","RATE_DAILY","PERIOD"]
[384984201,1757640657292,-5847.48,0.00017123,2]
[384984203,1757640657301,-480.0,0.00017123,2]
[384984205,1757640657310,-511.94,0.00017125,2]
[384984207,1757640657319,-480.0,0.00017125,2]
[384984209,1757640657329,-460.0,0.0001715,2]
[384984211,1757640657338,-168.0,0.00017222,2]
[384984213,1757640657348,-168.0,0.00017336,2]
[384984215,1757640657358,-168.0,0.00017352,2]
[384984217,1757640657367,-168.0,0.00017373,2]
[384984219,1757640657377,-607.08,0.00017395,2]
[384984221,1757640657386,-1394.34,0.00017395,2]
[384984223,1757640657397,-423.88,0.00017395,2]
[384984225,1757640657410,-1063.56,0.00017395,2]
[384984227,1757640657419,-812.03,0.00017395,2]
[384984229,1757640657428,-535.28,0.00017395,2]
[384984231,1757640657437,-480.0,0.00017396,2]
[384984233,1757640657447,-480.0,0.00017396,2]
[384984235,1757640657456,-151.0,0.00017396,2]
[384984237,1757640657469,-480.0,0.00017396,2]
[384984239,1757640657478,-948.1,0.00017396,2]
[384984241,1757640657487,-708.34,0.00017396,2]
[384984243,1757640657497,-2652.79,0.00017396,2]
[384984245,1757640657506,-480.0,0.00017396,2]
[384984247,1757640657515,-881.72,0.00017396,2]
[384984249,1757640657524,-480.0,0.00017396,2]
[384984251,1757640657533,-602.59,0.00017396,2]
[384984253,1757640657543,-1046.42,0.00017396,2]
[384984255,1757640657552,-480.0,0.00017396,2]
[384984257,1757640657561,-480.0,0.00017396,2]
[384984259,1757640657571,-679.41,0.00017396,2]
[384984261,1757640657580,-5847.48,0.00017396,2]
[384984263,1757640657590,-2824.06,0.00017396,2]
[384984265,1757640657600,-480.0,0.00017396,2]
[384984267,1757640657613,-480.0,0.00017399,2]
[384984269,1757640657622,-168.0,0.0001742,2]
[384984271,1757640657631,-554.9071145,0.00017439,2]
[384984273,1757640657640,-1500.0,0.00017454,2]
[384984275,1757640657650,-1000.0,0.00017487,2]
[384984277,1757640657659,-151.0,0.000175,2]
[384984279,1757640657668,-607.08,0.00017669,2]
[384984281,1757640657677,-1394.34,0.00017669,2]
[384984283,1757640657686,-1063.56,0.00017669,2]
[384984285,1757640657696,-812.03,0.00017669,2]
[384984287,1757640657704,-535.28,0.00017669,2]
[384984289,1757640657714,-578.26,0.0001767,2]
[384984291,1757640657722,-466.47146013,0.0001767,2]
[384984293,1757640657731,-480.0,0.0001767,2]
[384984295,1757640657740,-948.1,0.0001767,2]
[384984297,1757640657750,-708.34,0.0001767,2]
[384984299,1757640657758,-2652.79,0.0001767,2]
[384984301,1757640657768,-480.0,0.0001767,2]
[384984303,1757640657777,-881.72,0.0001767,2]
[384984305,1757640657786,-480.0,0.0001767,2]
[384984307,1757640657795,-602.59,0.0001767,2]
[384984309,1757640657804,-1046.42,0.0001767,2]
[384984311,1757640657812,-480.0,0.0001767,2]
[384984313,1757640657822,-420.93,0.0001767,2]
[384984315,1757640657831,-679.41,0.0001767,2]
[384984317,1757640657840,-5847.48,0.0001767,2]
[384984319,1757640657849,-2824.06,0.0001767,2]
[384984321,1757640657860,-480.0,0.0001767,2]
[384984323,1757640657869,-166.225936,0.00017672,2]
[384984325,1757640657878,-480.0,0.00017673,2]
[384984327,1757640657887,-560.0,0.00017698,2]
[384984329,1757640657896,-168.0,0.00017793,2]
[384984331,1757640657905,-250.0,0.00017832,2]
[384984333,1757640657915,-168.0,0.00017843,2]
[384984335,1757640657924,-168.0,0.00017916,2]
[384984337,1757640657934,-607.08,0.00017943,2]
[384984339,1757640657943,-1394.34,0.00017943,2]
[384984341,1757640657954,-1063.56,0.00017943,2]
[384984343,1757640657963,-812.03,0.00017943,2]
[384984352,1757640657972,-535.28,0.00017943,2]
[384984354,1757640658050,-480.0,0.00017944,2]
[384984356,1757640658059,-948.1,0.00017944,2]
[384984358,1757640658068,-708.34,0.00017944,2]
[384984360,1757640658078,-2652.79,0.00017944,2]
[384984362,1757640658086,-480.0,0.00017944,2]
[384984364,1757640658095,-881.72,0.00017944,2]
[384984366,1757640658106,-480.0,0.00017944,2]
[384984368,1757640658115,-602.59,0.00017944,2]
[384984370,1757640658124,-1046.42,0.00017944,2]
[384984372,1757640658134,-498.57,0.00017944,2]
[384984374,1757640658143,-679.41,0.00017944,2]
[384984376,1757640658152,-5847.48,0.00017944,2]
[384984378,1757640658161,-2824.06,0.00017944,2]
[384984380,1757640658171,-480.0,0.00017944,2]
[384984382,1757640658180,-480.0,0.00017947,2]
[384984384,1757640658189,-168.0,0.00017974,2]
[384984386,1757640658198,-765.0,0.00018,2]
[384984388,1757640658207,-2000.0,0.00018002,2]
[384984390,1757640658216,-1500.0,0.00018035,2]
[384984392,1757640658225,-168.0,0.00018108,2]
[384984394,1757640658234,-823.0,0.0001817,2]
[384984396,1757640658243,-607.08,0.00018217,2]
[384984398,1757640658252,-1394.34,0.00018217,2]
[384984400,1757640658261,-1063.56,0.00018217,2]
[384984402,1757640658270,-812.03,0.00018217,2]
[384984404,1757640658279,-535.28,0.00018217,2]
[384984406,1757640658287,-618.0,0.00018218,2]
[384984408,1757640658296,-948.1,0.00018218,2]
[384984410,1757640658306,-708.34,0.00018218,2]
[384984412,1757640658315,-2652.79,0.00018218,2]
[384984414,1757640658325,-573.81,0.00018218,2]
[384984416,1757640658334,-881.72,0.00018218,2]
[384984418,1757640658343,-480.0,0.00018218,2]
[384984420,1757640658353,-602.59,0.00018218,2]
[384984422,1757640658364,-1046.42,0.00018218,2]
[384984424,1757640658373,-679.41,0.00018218,2]
[384984426,1757640658383,-5847.48,0.00018218,2]
[384984428,1757640658392,-2824.06,0.00018218,2]
[384984430,1757640658404,-480.0,0.00018218,2]
[384984432,1757640658414,-168.0,0.00018218,2]
[384984434,1757640658423,-492.16502831,0.00018221,2]
[384984436,1757640658432,-7273.2420775,0.0001823,2]
[384984438,1757640658441,-660.0,0.00018246,2]
[384984440,1757640658451,-168.0,0.00018265,2]
[384984442,1757640658460,-168.0,0.00018336,2]
[384984444,1757640658470,-4031.36623348,0.00018355,2]
[384984515,1757640659132,480.0,0.00013695,2]
[384984711,1757640660998,313.62820154,0.00013558,2]
[384984719,1757640661058,535.96973156,0.00013737,2]
[384985486,1757640668980,2406.63659788,0.00013673,2]
[384986319,1757640677433,1385.78011819,0.00013734,2]
[384986603,1757640680193,8770.8,0.0002739,120]
[384987671,1757640691338,384.58678557,0.00013673,2]
[384988067,1757640695150,163.955176,0.00024,30]
[384988511,1757640699887,161.084967,0.00024,30]
[384989314,1757640709070,1000.0,0.00018749,20]
[384994945,1757640842277,871.61154636,0.00028408,60]
[384994950,1757640847484,468.97351508,0.00013734,2]
[384994953,1757640879410,96.160727,0.00013699,2]
[384994954,1757640879433,456.564609,0.00013699,2]
[384994958,1757640921332,282.2200871,0.00027397,120]
[384994959,1757641031699,9543.445391,0.00013699,2]
[384994960,1757641031721,10000.01,0.00013699,2]
[384994961,1757641031741,10000.01,0.00013699,2]
[384994962,1757641031761,10000.01,0.00013699,2]
[384994963,1757641031781,10000.01,0.00013699,2]
[384994964,1757641031802,10000.01,0.00013699,2]
[384994965,1757641031822,4300.589121,0.00013699,2]
[384994970,1757641114309,1940.417,0.00027397,120]
[384994971,1757641121182,3677.1504664,0.00028413,120]
[384994972,1757641158659,2223.57156625,0.000151,7]
[384994973,1757641173109,666.0,0.00012828,2]
[384994986,1757641258861,1000.0,0.00012941,2]
[384994989,1757641321586,599.038637,0.00013699,2]
[384995035,1757641600209,436.7693657,0.00012931,2]
[384995045,1757641636635,2997.6128763,0.00013734,2]
[384995046,1757641636657,10000.01,0.00013734,2]
[384995047,1757641636678,10000.01,0.00013734,2]
[384995048,1757641636701,10000.01,0.00013734,2]
[384995049,1757641636722,1142.36105246,0.00013734,2]
[384995050,1757641636769,-300.0,0.00013808,2]
[384995051,1757641636796,-1200.0,0.00013808,2]
[384995052,1757641636827,-1200.0,0.00013809,2]
[384995053,1757641636855,-480.0,0.00013809,2]
[384995054,1757641636881,-476.08998193,0.00013809,2]
[384995055,1757641636910,-480.0,0.00013809,2]
[384995056,1757641636936,-500.0,0.00013809,2]
[384995057,1757641636964,-227.83003614,0.00013809,2]
[384995058,1757641637120,-272.16996386,0.00013809,2]
[384995059,1757641637149,-500.0,0.00013809,2]
[384995060,1757641637175,-233.2061184,0.00013809,2]
[384995061,1757641637202,-440.01647604,0.00013809,2]
[384995062,1757641637229,-500.0,0.00013809,2]
[384995063,1757641637255,-195.96007949,0.00013809,2]
[384995064,1757641637284,-627.27662392,0.00013809,2]
[384995065,1757641637313,-500.0,0.00013809,2]
[384995066,1757641637341,-500.0,0.00013809,2]
[384995067,1757641637370,-279.93495935,0.00013809,2]
[384995068,1757641637399,-500.0,0.00013809,2]
[384995069,1757641637428,-402.88155788,0.00013809,2]
[384995070,1757641637575,-97.11844212,0.00013809,2]
[384995071,1757641637713,-500.0,0.00013809,2]
[384995072,1757641637742,-500.0,0.00013809,2]
[384995073,1757641637769,-500.0,0.00013809,2]
[384995074,1757641637796,-271.36440625,0.00013809,2]
[384995075,1757641637826,-500.0,0.00013809,2]
[384995076,1757641637856,-500.0,0.00013809,2]
[384995077,1757641637885,-500.0,0.00013809,2]
[384995078,1757641637914,-500.0,0.00013809,2]
[384995079,1757641637941,-500.0,0.00013809,2]
[384995080,1757641637971,-500.0,0.00013809,2]
[384995081,1757641638082,-500.0,0.00013809,2]
[384995082,1757641638112,-199.01799835,0.00013809,2]
[384995083,1757641638144,-500.0,0.00013809,2]
[384995084,1757641638174,-500.0,0.00013809,2]
[384995085,1757641638204,-500.0,0.00013809,2]
[384995086,1757641638233,-500.0,0.00013809,2]
[384995087,1757641638261,-500.0,0.00013809,2]
[384995088,1757641638291,-500.0,0.00013809,2]
[384995089,1757641638322,-500.0,0.00013809,2]
[384995090,1757641638352,-500.0,0.00013809,2]
[384995091,1757641638382,-101.9740033,0.00013809,2]
[384995092,1757641638553,-398.0259967,0.00013809,2]
[384995093,1757641638583,-500.0,0.00013809,2]
[384995094,1757641638614,-500.0,0.00013809,2]
[384995095,1757641638645,-500.0,0.00013809,2]
[384995096,1757641638673,-500.0,0.00013809,2]
[384995097,1757641638703,-500.0,0.00013809,2]
[384995098,1757641638733,-500.0,0.00013809,2]
[384995099,1757641638763,-500.0,0.00013809,2]
[384995100,1757641638793,-500.0,0.00013809,2]
[384995101,1757641638828,-500.0,0.00013809,2]
[384995121,1757641643888,2713.37331411,0.00013671,2]
[384995122,1757641645854,792.09,0.00012329,2]
[384995123,1757641646736,-347.73306144,0.00013809,2]
[384995124,1757641646921,-500.0,0.00013809,2]
[384995125,1757641646959,-500.0,0.00013809,2]
[384995126,1757641646989,-500.0,0.00013809,2]
[384995127,1757641647018,-500.0,0.00013809,2]
[384995128,1757641647046,-480.0,0.00013809,2]
[384995129,1757641647073,-480.0,0.00013809,2]
[384995130,1757641647100,-486.86365684,0.00013809,2]
[384995131,1757641647127,-480.0,0.00013809,2]
[384995132,1757641647156,-480.0,0.0001381,2]
[384995133,1757641647184,-5.34017259,0.0001381,2]
[384995134,1757641647277,-480.13621826,0.0001381,2]
[384995135,1757641647306,-480.0,0.0001381,2]
[384995136,1757641647334,-481.1776793,0.0001381,2]
[384995137,1757641647361,-480.0,0.0001381,2]
[384995138,1757641647389,-480.0,0.0001381,2]
[384995139,1757641647418,-480.0,0.0001381,2]
[384995140,1757641647445,-480.0,0.0001381,2]
[384995141,1757641647475,-1269.16,0.0001381,2]
[384995142,1757641647568,-1074.57,0.0001381,2]
[384995143,1757641647596,-480.0,0.0001381,2]
[384995144,1757641647623,-489.76708905,0.0001381,2]
[384995145,1757641647653,-480.0,0.0001381,2]
[384995146,1757641647681,-480.0,0.0001381,2]
[384995147,1757641647713,-480.0,0.0001381,2]
[384995148,1757641647744,-484.78902059,0.0001381,2]
[384995149,1757641647774,-480.0,0.0001381,2]
[384995150,1757641647802,-480.0,0.0001381,2]
[384995151,1757641647964,-480.0,0.0001381,2]
[384995152,1757641647992,-480.0,0.0001381,2]
[384995153,1757641648020,-480.0,0.0001381,2]
[384995154,1757641648049,-480.0,0.0001381,2]
[384995155,1757641648079,-480.0,0.0001381,2]
[384995156,1757641648106,-480.0,0.0001381,2]
[384995157,1757641648137,-480.0,0.0001381,2]
[384995158,1757641648166,-480.0,0.0001381,2]
[384995159,1757641648194,-876.07,0.0001381,2]
[384995160,1757641648225,-87.87,0.0001381,2]
[384995161,1757641648414,-392.13,0.0001381,2]
[384995162,1757641648442,-480.0,0.0001381,2]
[384995163,1757641648471,-480.0,0.0001381,2]
[384995164,1757641648499,-480.0,0.0001381,2]
[384995165,1757641648527,-480.0,0.0001381,2]
[384995166,1757641648556,-480.0,0.0001381,2]
[384995167,1757641648584,-544.68,0.0001381,2]
[384995168,1757641648613,-480.0,0.0001381,2]
[384995169,1757641648740,-790.12,0.0001381,2]
[384995170,1757641648856,-786.15,0.0001381,2]
[384995171,1757641648886,-521.35275739,0.0001381,2]
[384995172,1757641648918,-493.98910193,0.0001381,2]
[384995173,1757641648946,-248.54682208,0.0001381,2]
[384995174,1757641648975,-201.56964255,0.0001381,2]
[384995175,1757641649009,-480.0,0.0001381,2]
[384995176,1757641649040,-1726.7033521,0.0001381,2]
[384995178,1757641653101,7744.7566479,0.00013672,2]
[384995179,1757641655949,-1083.3866479,0.0001381,2]
[384995180,1757641655978,-480.0,0.0001381,2]
[384995181,1757641656006,-933.28,0.0001381,2]
[384995182,1757641656035,-480.0,0.0001381,2]
[384995183,1757641656062,-480.0,0.0001381,2]
[384995184,1757641656091,-480.0,0.0001381,2]
[384995185,1757641656119,-651.72,0.0001381,2]
[384995186,1757641656149,-66.8667042,0.0001381,2]
[384995187,1757641656326,-689.5032958,0.0001381,2]
[384995188,1757641656358,-480.0,0.0001381,2]
[384995189,1757641656390,-480.0,0.0001381,2]
[384995190,1757641656420,-480.0,0.0001381,2]
[384995191,1757641656448,-480.0,0.0001381,2]
[384995192,1757641656476,-480.0,0.0001381,2]
[384995193,1757641656505,-480.0,0.0001381,2]
[384995194,1757641656535,-1260.59,0.0001381,2]
[384995195,1757641656852,1097.62,0.00012329,2]
[384995196,1757641656885,-500.0,0.0001381,2]
[384995197,1757641656914,-559.63808652,0.0001381,2]
[384995198,1757641656942,-480.0,0.00013811,2]
[384995199,1757641656971,-480.0,0.00013811,2]
[384995200,1757641657000,-480.0,0.00013811,2]
[384995201,1757641657029,-480.0,0.00013811,2]
[384995202,1757641657056,-567.78275971,0.00013811,2]
[384995203,1757641657083,-480.0,0.00013811,2]
[384995204,1757641657112,-480.0,0.00013811,2]
[384995205,1757641657139,-480.0,0.00013811,2]
[384995206,1757641657313,-480.0,0.00013811,2]
[384995207,1757641657341,-480.0,0.00013811,2]
[384995208,1757641657369,-480.0,0.00013811,2]
[384995209,1757641657398,-490.17214889,0.00013811,2]
[384995210,1757641657427,-480.0,0.00013811,2]
[384995211,1757641657456,-480.0,0.00013811,2]
[384995212,1757641657486,-477.89053164,0.00013811,2]
[384995213,1757641657514,-486.45912699,0.00013811,2]
[384995214,1757641657544,-531.64151965,0.00013811,2]
[384995215,1757641657572,-284.81116555,0.00013811,2]
[384995216,1757641657601,-171.93038519,0.00013811,2]
[384995217,1757641657791,-314.20024418,0.00013811,2]
[384995218,1757641657819,-480.0,0.00013811,2]
[384995219,1757641657849,-480.0,0.00013811,2]
[384995220,1757641657877,-480.0,0.00013811,2]
[384995221,1757641657905,-480.0,0.00013811,2]
[384995222,1757641657935,-480.0,0.00013811,2]
[384995223,1757641657963,-480.0,0.00013811,2]
[384995224,1757641657993,-480.0,0.00013811,2]
[384995225,1757641658023,-480.0,0.00013811,2]
[384995226,1757641658051,-480.0,0.00013811,2]
[384995227,1757641658078,-251.60951164,0.00013811,2]
[384995228,1757641658127,-228.39048836,0.00013811,2]
[384995229,1757641658156,-480.0,0.00013811,2]
[384995230,1757641658183,-480.0,0.00013811,2]
[384995231,1757641658211,-480.0,0.00013811,2]
[384995232,1757641658241,-388.22011593,0.00013811,2]
[384995233,1757641658273,-480.0,0.00013811,2]
[384995234,1757641658301,-480.0,0.00013811,2]
[384995235,1757641658332,-976.15879142,0.00013811,2]
[384995237,1757641661398,1157.6333521,0.00013673,2]
[384995238,1757641661421,6942.3666479,0.00013673,2]
[384995239,1757641661716,-2014.47120858,0.00013811,2]
[384995240,1757641661745,-480.0,0.00013811,2]
[384995241,1757641661773,-190.3154269,0.00013811,2]
[384995242,1757641661803,-480.0,0.00013811,2]
[384995243,1757641661836,-480.0,0.00013811,2]
[384995244,1757641661864,-480.0,0.00013811,2]
[384995245,1757641661892,-480.0,0.00013811,2]
[384995246,1757641662063,-829.62,0.00013811,2]
[384995247,1757641662093,-1065.47,0.00013811,2]
[384995248,1757641662121,-480.0,0.00013811,2]
[384995249,1757641662151,-480.0,0.00013811,2]
[384995250,1757641662179,-480.0,0.00013811,2]
[384995251,1757641662208,-484.99586201,0.00013811,2]
[384995252,1757641662238,-1062.49827598,0.00013811,2]
[384995253,1757641662421,-234.84172402,0.00013811,2]
[384995254,1757641662450,-488.64031872,0.00013811,2]
[384995255,1757641662479,-480.0,0.00013811,2]
[384995256,1757641662509,-480.0,0.00013811,2]
[384995257,1757641662538,-482.40047371,0.00013811,2]
[384995258,1757641662567,-488.89745314,0.00013811,2]
[384995259,1757641662596,-482.07654548,0.00013811,2]
[384995260,1757641662624,-486.37707058,0.00013811,2]
[384995261,1757641662750,-492.55793198,0.00013811,2]
[384995262,1757641662952,-3488.7,0.00013811,2]
[384995263,1757641663093,-3022.61,0.00013811,2]
[384995264,1757641663122,-768.51,0.00013811,2]
[384995265,1757641663150,-480.0,0.00013811,2]
[384995266,1757641663178,-480.0,0.00013811,2]
[384995267,1757641663206,-12.93396782,0.00013811,2]
[384995268,1757641663247,-471.90206436,0.00013811,2]
[384995269,1757641663275,-490.58348571,0.00013811,2]
[384995270,1757641663307,-624.59,0.00013811,2]
[384995271,1757641663334,-486.62967052,0.00013811,2]
[384995272,1757641663361,-480.0,0.00013811,2]
[384995273,1757641663389,-484.22373878,0.00013811,2]
[384995274,1757641663418,-486.13209321,0.00013811,2]
[384995275,1757641663445,-480.0,0.00013811,2]
[384995276,1757641663473,-485.53099758,0.00013811,2]
[384995277,1757641663501,-483.85248521,0.00013811,2]
[384995278,1757641666725,-480.0,0.0001381,2]
[384995279,1757641666754,-485.01644406,0.00013811,2]
[384995280,1757641666782,-480.0,0.00013811,2]
[384995281,1757641666811,-194.00700206,0.00013811,2]
[384995282,1757641666843,-480.0,0.00013811,2]
[384995283,1757641666873,-480.0,0.00013811,2]
[384995284,1757641666902,-480.0,0.00013811,2]
[384995285,1757641666934,-155.462,0.00013833,2]
[384995286,1757641666962,-198.82430613,0.00013834,2]
[384995287,1757641666991,-480.0,0.00013834,2]
[384995288,1757641667020,-480.0,0.00013834,2]
[384995289,1757641667048,-480.0,0.00013834,2]
[384995290,1757641667200,914.69,0.00012329,2]
[384995292,1757641667303,-480.0,0.00013834,2]
[384995293,1757641667330,-480.0,0.00013834,2]
[384995294,1757641667358,-485.62994612,0.00013834,2]
[384995295,1757641667386,-480.0,0.00013834,2]
[384995296,1757641667414,-483.42687192,0.00013834,2]
[384995297,1757641667443,-480.0,0.00013834,2]
[384995298,1757641667563,-484.56390526,0.00013834,2]
[384995299,1757641667593,-480.0,0.00013834,2]
[384995300,1757641667622,-480.0,0.00013834,2]
[384995301,1757641667650,-480.0,0.00013834,2]
[384995302,1757641667843,-480.0,0.00013835,2]
[384995303,1757641667871,-395.31320067,0.00013835,2]
[384995304,1757641667900,-480.0,0.00013835,2]
[384995305,1757641667931,-480.0,0.00013835,2]
[384995306,1757641667959,-480.0,0.00013835,2]
[384995307,1757641667989,-484.74536102,0.00013835,2]
[384995308,1757641668017,-480.0,0.00013835,2]
[384995309,1757641668047,-480.0,0.00013835,2]
[384995310,1757641668076,-906.0238514,0.00013985,2]
[384995311,1757641668106,-187.84517382,0.00014083,2]
[384995312,1757641668296,-292.15482618,0.00014083,2]
[384995313,1757641668324,-480.0,0.00014083,2]
[384995314,1757641668353,-480.0,0.00014083,2]
[384995315,1757641668382,-480.0,0.00014083,2]
[384995316,1757641668410,-480.0,0.00014083,2]
[384995317,1757641668438,-480.0,0.00014084,2]
[384995318,1757641668466,-589.24741498,0.00014084,2]
[384995319,1757641668495,-480.0,0.00014084,2]
[384995320,1757641668525,-480.0,0.00014084,2]
[384995321,1757641668554,-480.0,0.00014084,2]
[384995322,1757641668595,-1074.57,0.00014084,2]
[384995323,1757641668626,-480.0,0.00014084,2]
[384995324,1757641668655,-480.0,0.00014084,2]
[384995325,1757641668684,-487.9952172,0.00014084,2]
[384995326,1757641668713,-480.0,0.00014084,2]
[384995327,1757641668743,-480.0,0.00014084,2]
[384995328,1757641668772,-480.0,0.00014084,2]
[384995329,1757641668801,-480.0,0.00014084,2]
[384995330,1757641668836,-480.0,0.00014084,2]
[384995331,1757641669177,-480.0,0.00014084,2]
[384995332,1757641669208,-480.0,0.00014084,2]
[384995333,1757641669238,-480.0,0.00014084,2]
[384995334,1757641669269,-480.0,0.00014084,2]
[384995335,1757641669301,-480.0,0.00014084,2]
[384995336,1757641669330,-480.0,0.00014084,2]
[384995337,1757641669359,-876.07,0.00014084,2]
[384995338,1757641669387,-480.0,0.00014084,2]
[384995339,1757641669415,-480.0,0.00014084,2]
[384995340,1757641669445,-87.87,0.00014084,2]
[384995342,1757641677361,2142.9533521,0.00012329,2]
[384995343,1757641677383,722.0566479,0.00012329,2]
[384995344,1757641679488,960.0,0.00013672,2]
[384995345,1757641683825,-480.0,0.0001381,2]
[384995346,1757641683858,-480.0,0.0001381,2]
[384995348,1757641683887,-480.0,0.0001381,2]
[384995349,1757641683918,-480.0,0.0001381,2]
[384995350,1757641683947,-480.0,0.0001381,2]
[384995351,1757641683975,-480.0,0.00013811,2]
[384995352,1757641684004,-480.0,0.00013811,2]
[384995353,1757641684033,-300.0,0.00013942,2]
[384995354,1757641684373,-4438.61381227,0.00013943,2]
[384995355,1757641684804,-1122.78237546,0.00013943,2]
[384995356,1757641684833,-392.13,0.00014084,2]
[384995357,1757641684864,-480.0,0.00014084,2]
[384995358,1757641684893,-480.0,0.00014084,2]
[384995359,1757641684921,-222.00499761,0.00014084,2]
[384995360,1757641684952,-544.68,0.00014084,2]
[384995361,1757641684982,-480.0,0.00014084,2]
[384995362,1757641685013,-980.54525386,0.00014084,2]
[384995363,1757641685049,-595.72474614,0.00014084,2]
[384995364,1757641685077,-488.73668098,0.00014084,2]
[384995365,1757641685106,-2810.09,0.00014084,2]
[384995366,1757641685135,-480.0,0.00014084,2]
[384995367,1757641685164,-317.62714576,0.00014084,2]
[384995368,1757641685198,-615.65285424,0.00014084,2]
[384995369,1757641685226,-480.0,0.00014084,2]
[384995370,1757641685255,-480.0,0.00014084,2]
[384995371,1757641685284,-480.0,0.00014084,2]
[384995372,1757641685313,-651.72,0.00014084,2]
[384995373,1757641685342,-756.37,0.00014084,2]
[384995374,1757641685372,-480.0,0.00014084,2]
[384995375,1757641685401,-480.0,0.00014084,2]
[384995376,1757641685428,-480.0,0.00014084,2]
[384995377,1757641685540,-1260.59,0.00014084,2]
[384995378,1757641685570,-480.0,0.00014084,2]
[384995379,1757641685599,-332.03,0.00014084,2]
[384995380,1757641685628,-480.0,0.00014084,2]
[384995381,1757641685657,-480.0,0.00014084,2]
[384995382,1757641685687,-480.0,0.00014084,2]
[384995383,1757641685715,-480.0,0.00014084,2]
[384995384,1757641685741,-455.74145442,0.00014084,2]
[384995385,1757641685769,-506.12592418,0.00014085,2]
[384995386,1757641687574,-480.0,0.00014085,2]
[384995387,1757641687601,-480.0,0.00014085,2]
[384995388,1757641687628,-480.0,0.00014085,2]
[384995389,1757641687656,-480.0,0.00014085,2]
[384995390,1757641687684,-480.0,0.00014085,2]
[384995391,1757641687713,-480.0,0.00014085,2]
[384995392,1757641687742,-480.0,0.00014085,2]
[384995393,1757641687771,-480.0,0.00014085,2]
[384995394,1757641687799,-480.0,0.00014085,2]
[384995395,1757641687829,-480.0,0.00014085,2]
[384995396,1757641687888,-480.0,0.00014085,2]
[384995397,1757641687917,-480.0,0.00014085,2]
[384995398,1757641687946,-480.0,0.00014085,2]
[384995399,1757641687975,-480.0,0.00014085,2]
[384995400,1757641688004,-480.0,0.00014085,2]
[384995401,1757641688033,-480.0,0.00014085,2]
[384995402,1757641688062,-480.0,0.00014085,2]
[384995403,1757641688090,-480.0,0.00014085,2]
[384995404,1757641688119,-480.0,0.00014085,2]
[384995405,1757641688147,-480.0,0.00014085,2]
[384995406,1757641688195,-480.0,0.00014085,2]
[384995407,1757641688225,-484.34038497,0.00014085,2]
[384995408,1757641688251,-278.5542636,0.00014085,2]
[384995409,1757641688280,-2990.63,0.00014085,2]
[384995410,1757641688307,-480.0,0.00014085,2]
[384995411,1757641688334,-92.96070286,0.00014085,2]
[384995412,1757641688371,-387.03929714,0.00014085,2]
[384995413,1757641688401,-480.0,0.00014085,2]
[384995414,1757641688432,-480.0,0.00014085,2]
[384995415,1757641688461,-480.0,0.00014085,2]
[384995416,1757641688489,-829.62,0.00014085,2]
[384995417,1757641688519,-1065.47,0.00014085,2]
[384995418,1757641688548,-480.0,0.00014085,2]
[384995419,1757641688578,-480.0,0.00014085,2]
[384995420,1757641688606,-155.75140572,0.00014085,2]